[Event "Titled Tuesday Blitz January 17 Late 2023"]
[White "Harish, Neeraj"]
[Black "Slavin, Alexey"]
[WhiteFideId "30958130"]
[BlackFideId "24104388"]
[WhiteElo "2232"]
[BlackElo "2364"]
[Result "1-0"]
[Round "11"]
[TimeControl "180+2"]
[Date "2023.01.17"]
[WhiteClock "0:01:05"]
[BlackClock "0:00:05"]

1. e4 {[%clk 0:02:59]}  Nc6 {[%clk 0:02:59]} 2. Nf3 {[%clk 0:02:55]}  d6 {[%clk 0:02:59]} 3. d4 {[%clk 0:02:54]}  Nf6 {[%clk 0:03:00]} 4. Nc3 {[%clk 0:02:52]}  Bg4 {[%clk 0:03:00]} 5. Be3 {[%clk 0:02:49]}  a6 {[%clk 0:02:58]} 6. h3 {[%clk 0:02:49]}  Bh5 {[%clk 0:02:58]} 7. Be2 {[%clk 0:02:45]}  e5 {[%clk 0:02:57]} 8. d5 {[%clk 0:02:42]}  Nb8 {[%clk 0:02:57]} 9. Qd2 {[%clk 0:02:41]}  Nbd7 {[%clk 0:02:56]} 10. O-O-O {[%clk 0:02:41]}  Be7 {[%clk 0:02:55]} 11. g4 {[%clk 0:02:41]}  Bg6 {[%clk 0:02:55]} 12. Bd3 {[%clk 0:02:40]}  b5 {[%clk 0:02:49]} 13. g5 {[%clk 0:02:30]}  b4 {[%clk 0:02:42]} 14. gxf6 {[%clk 0:02:24]}  bxc3 {[%clk 0:02:41]} 15. Qxc3 {[%clk 0:02:25]}  Bxf6 {[%clk 0:02:34]} 16. h4 {[%clk 0:02:20]}  Bh5 {[%clk 0:02:33]} 17. Be2 {[%clk 0:02:19]}  O-O {[%clk 0:02:30]} 18. Qd2 {[%clk 0:02:18]}  Be7 {[%clk 0:02:26]} 19. Ng5 {[%clk 0:02:17]}  Bxe2 {[%clk 0:02:20]} 20. Qxe2 {[%clk 0:02:18]}  h6 {[%clk 0:02:20]} 21. Nf3 {[%clk 0:02:19]}  f5 {[%clk 0:02:18]} 22. exf5 {[%clk 0:02:17]}  Rxf5 {[%clk 0:02:17]} 23. Rdg1 {[%clk 0:02:16]}  Kh8 {[%clk 0:02:17]} 24. Nd2 {[%clk 0:02:11]}  Nf6 {[%clk 0:02:10]} 25. c4 {[%clk 0:02:00]}  Qd7 {[%clk 0:02:06]} 26. Rg6 {[%clk 0:01:54]}  Rg8 {[%clk 0:01:40]} 27. Rhg1 {[%clk 0:01:52]}  Kh7 {[%clk 0:01:19]} 28. Qd3 {[%clk 0:01:32]}  Kh8 {[%clk 0:01:01]} 29. Ne4 {[%clk 0:01:31]}  Nxe4 {[%clk 0:00:57]} 30. Qxe4 {[%clk 0:01:31]}  Rf6 {[%clk 0:00:58]} 31. Bxh6 {[%clk 0:01:25]}  Rxg6 {[%clk 0:00:49]} 32. Qxg6 {[%clk 0:01:25]}  Bf6 {[%clk 0:00:20]} 33. Qh5 {[%clk 0:01:11]}  g6 {[%clk 0:00:09]} 34. Rxg6 {[%clk 0:01:07]}  Rxg6 {[%clk 0:00:09]} 35. Qxg6 {[%clk 0:01:07]}  Qe7 {[%clk 0:00:07]} 36. Bg5 {[%clk 0:01:06]}  Bxg5+ {[%clk 0:00:06]} 37. hxg5 {[%clk 0:01:06]}  e4 {[%clk 0:00:06]} 38. Kd2 {[%clk 0:01:02]}  Qe5 {[%clk 0:00:05]} 39. Qf6+ {[%clk 0:01:01]}  Qxf6 {[%clk 0:00:06]} 40. gxf6 {[%clk 0:01:02]}  Kh7 {[%clk 0:00:06]} 41. Ke3 {[%clk 0:01:03]}  Kg6 {[%clk 0:00:07]} 42. Kxe4 {[%clk 0:01:04]}  Kxf6 {[%clk 0:00:07]} 43. Kf4 {[%clk 0:01:04]}  a5 {[%clk 0:00:08]} 44. b3 {[%clk 0:01:03]}  Kg6 {[%clk 0:00:07]} 45. a3 {[%clk 0:01:03]}  Kf6 {[%clk 0:00:07]} 46. b4 {[%clk 0:01:03]}  axb4 {[%clk 0:00:07]} 47. axb4 {[%clk 0:01:04]}  Kg6 {[%clk 0:00:08]} 48. c5 {[%clk 0:01:04]}  Kf6 {[%clk 0:00:08]} 49. Ke4 {[%clk 0:01:02]}  Ke7 {[%clk 0:00:05]} 50. Kf5 {[%clk 0:01:01]}  Kf7 {[%clk 0:00:05]} 51. cxd6 {[%clk 0:01:00]}  cxd6 {[%clk 0:00:05]} 52. b5 {[%clk 0:01:01]}  Ke7 {[%clk 0:00:05]} 53. b6 {[%clk 0:01:02]}  Kd7 {[%clk 0:00:04]} 54. b7 {[%clk 0:01:02]}  Kc7 {[%clk 0:00:04]} 55. Ke6 {[%clk 0:01:03]}  Kxb7 {[%clk 0:00:05]} 56. Kxd6 {[%clk 0:01:04]}  Kc8 {[%clk 0:00:05]} 57. Ke7 {[%clk 0:01:05]} 1-0


[Site "https://www.chess.com"]

[Event "Titled Tuesday Blitz January 17 Late 2023"]
[White "Carbone, Diego"]
[Black "Liu, Kelsey"]
[WhiteFideId "3002179"]
[BlackFideId "30944481"]
[WhiteElo "2336"]
[BlackElo "2065"]
[Result "0-1"]
[Round "11"]
[TimeControl "180+2"]
[Date "2023.01.17"]
[WhiteClock "0:01:04"]
[BlackClock "0:00:57"]

1. d4 {[%clk 0:03:00]}  Nf6 {[%clk 0:02:59]} 2. c4 {[%clk 0:02:57]}  e6 {[%clk 0:03:00]} 3. g3 {[%clk 0:02:58]}  d5 {[%clk 0:02:58]} 4. Nf3 {[%clk 0:02:58]}  Be7 {[%clk 0:02:58]} 5. Bg2 {[%clk 0:02:58]}  O-O {[%clk 0:02:59]} 6. O-O {[%clk 0:02:58]}  dxc4 {[%clk 0:02:59]} 7. Qc2 {[%clk 0:02:59]}  a6 {[%clk 0:02:59]} 8. a4 {[%clk 0:02:59]}  c5 {[%clk 0:02:57]} 9. dxc5 {[%clk 0:02:55]}  Bxc5 {[%clk 0:02:58]} 10. Qxc4 {[%clk 0:02:53]}  Nbd7 {[%clk 0:02:53]} 11. b4 {[%clk 0:02:41]}  Bd6 {[%clk 0:02:25]} 12. Rd1 {[%clk 0:02:33]}  Qe7 {[%clk 0:02:24]} 13. Ba3 {[%clk 0:02:25]}  Rd8 {[%clk 0:02:22]} 14. Nc3 {[%clk 0:02:22]}  Nb6 {[%clk 0:02:19]} 15. Qb3 {[%clk 0:02:19]}  Bd7 {[%clk 0:02:16]} 16. e4 {[%clk 0:02:16]}  e5 {[%clk 0:02:09]} 17. a5 {[%clk 0:02:12]}  Be6 {[%clk 0:02:08]} 18. Nd5 {[%clk 0:02:07]}  Nbxd5 {[%clk 0:02:02]} 19. exd5 {[%clk 0:02:08]}  Bf5 {[%clk 0:01:38]} 20. Nh4 {[%clk 0:01:59]}  Bg4 {[%clk 0:01:33]} 21. f3 {[%clk 0:01:58]}  Bd7 {[%clk 0:01:32]} 22. g4 {[%clk 0:01:31]}  Nxg4 {[%clk 0:01:26]} 23. fxg4 {[%clk 0:01:21]}  Qxh4 {[%clk 0:01:26]} 24. h3 {[%clk 0:01:21]}  e4 {[%clk 0:01:14]} 25. Bxe4 {[%clk 0:01:16]}  Re8 {[%clk 0:01:03]} 26. Bg2 {[%clk 0:01:08]}  Bf4 {[%clk 0:00:56]} 27. Re1 {[%clk 0:01:03]}  Rxe1+ {[%clk 0:00:56]} 28. Rxe1 {[%clk 0:01:04]}  Qxe1+ {[%clk 0:00:57]} 0-1


[Site "https://www.chess.com"]

[Event "Titled Tuesday Blitz January 17 Late 2023"]
[White "Qiao, Cindy"]
[Black "Romero Ruscalleda, Josep"]
[WhiteFideId "2620243"]
[BlackFideId "2231859"]
[WhiteElo "1785"]
[BlackElo "2160"]
[Result "0-1"]
[Round "11"]
[TimeControl "180+2"]
[Date "2023.01.17"]
[WhiteClock "0:00:38"]
[BlackClock "0:00:19"]

1. d4 {[%clk 0:03:00]}  g6 {[%clk 0:03:00]} 2. Bf4 {[%clk 0:03:01]}  Bg7 {[%clk 0:03:01]} 3. Nc3 {[%clk 0:03:00]}  d6 {[%clk 0:03:01]} 4. e4 {[%clk 0:03:01]}  Nf6 {[%clk 0:03:01]} 5. Nf3 {[%clk 0:03:01]}  O-O {[%clk 0:03:01]} 6. Qd2 {[%clk 0:03:01]}  a6 {[%clk 0:03:01]} 7. O-O-O {[%clk 0:03:02]}  b5 {[%clk 0:03:01]} 8. Bd3 {[%clk 0:03:02]}  Bb7 {[%clk 0:03:00]} 9. Bh6 {[%clk 0:02:52]}  b4 {[%clk 0:02:58]} 10. Nd5 {[%clk 0:02:52]}  Nxd5 {[%clk 0:02:48]} 11. exd5 {[%clk 0:02:53]}  Bxd5 {[%clk 0:02:47]} 12. Kb1 {[%clk 0:02:54]}  a5 {[%clk 0:02:40]} 13. h4 {[%clk 0:02:54]}  f6 {[%clk 0:01:43]} 14. h5 {[%clk 0:02:48]}  g5 {[%clk 0:01:43]} 15. Bxg5 {[%clk 0:02:37]}  fxg5 {[%clk 0:01:42]} 16. Nxg5 {[%clk 0:02:38]}  h6 {[%clk 0:01:34]} 17. Ne4 {[%clk 0:02:23]}  Nd7 {[%clk 0:01:30]} 18. g4 {[%clk 0:02:22]}  Nf6 {[%clk 0:01:30]} 19. Nxf6+ {[%clk 0:02:22]}  Bxf6 {[%clk 0:01:28]} 20. Qxh6 {[%clk 0:02:21]}  Rf7 {[%clk 0:01:24]} 21. Bg6 {[%clk 0:02:11]}  Bxh1 {[%clk 0:01:09]} 22. Bxf7+ {[%clk 0:02:06]}  Kxf7 {[%clk 0:01:10]} 23. Qg6+ {[%clk 0:02:05]}  Kf8 {[%clk 0:01:09]} 24. Rxh1 {[%clk 0:01:59]}  Qe8 {[%clk 0:01:07]} 25. Qh6+ {[%clk 0:01:57]}  Bg7 {[%clk 0:01:06]} 26. Qe3 {[%clk 0:01:54]}  Qf7 {[%clk 0:01:00]} 27. g5 {[%clk 0:01:50]}  Qd5 {[%clk 0:00:53]} 28. Re1 {[%clk 0:01:47]}  Qxd4 {[%clk 0:00:45]} 29. Qxe7+ {[%clk 0:01:40]}  Kg8 {[%clk 0:00:45]} 30. Qe6+ {[%clk 0:01:40]}  Kh8 {[%clk 0:00:45]} 31. Kc1 {[%clk 0:01:01]}  Qxb2+ {[%clk 0:00:38]} 32. Kd1 {[%clk 0:01:02]}  Qa1+ {[%clk 0:00:35]} 33. Ke2 {[%clk 0:01:02]}  Qe5+ {[%clk 0:00:31]} 34. Kf1 {[%clk 0:01:02]}  Qxg5 {[%clk 0:00:28]} 35. Re3 {[%clk 0:00:55]}  Rf8 {[%clk 0:00:26]} 36. h6 {[%clk 0:00:45]}  Be5 {[%clk 0:00:20]} 37. Ke2 {[%clk 0:00:40]}  Qf6 {[%clk 0:00:19]} 38. Qh3 {[%clk 0:00:39]}  Qxf2+ {[%clk 0:00:19]} 39. Kd3 {[%clk 0:00:39]}  Qf5+ {[%clk 0:00:18]} 40. Qxf5 {[%clk 0:00:40]}  Rxf5 {[%clk 0:00:19]} 41. Kc4 {[%clk 0:00:40]}  Kh7 {[%clk 0:00:19]} 42. Kb5 {[%clk 0:00:38]}  Bd4+ {[%clk 0:00:19]} 0-1


[Site "https://www.chess.com"]

[Event "Titled Tuesday Blitz January 17 Late 2023"]
[White "Vasques, Antonio Pedro Freixial"]
[Black "Cueto, Jonny"]
[WhiteFideId "1908332"]
[BlackFideId "3300145"]
[WhiteElo "2214"]
[BlackElo "2122"]
[Result "1-0"]
[Round "11"]
[TimeControl "180+2"]
[Date "2023.01.17"]
[WhiteClock "0:01:05"]
[BlackClock "0:00:05"]

1. Nf3 {[%clk 0:03:00]}  e6 {[%clk 0:03:00]} 2. c4 {[%clk 0:03:00]}  d5 {[%clk 0:03:01]} 3. d4 {[%clk 0:03:00]}  b6 {[%clk 0:02:58]} 4. g3 {[%clk 0:03:01]}  Bb7 {[%clk 0:02:59]} 5. Bg2 {[%clk 0:03:01]}  Nf6 {[%clk 0:02:59]} 6. O-O {[%clk 0:03:00]}  Be7 {[%clk 0:03:00]} 7. Ne5 {[%clk 0:02:59]}  O-O {[%clk 0:02:58]} 8. b3 {[%clk 0:02:56]}  Nbd7 {[%clk 0:02:52]} 9. Bb2 {[%clk 0:02:51]}  c6 {[%clk 0:02:43]} 10. Nd2 {[%clk 0:02:45]}  Rc8 {[%clk 0:02:43]} 11. Rc1 {[%clk 0:02:42]}  Re8 {[%clk 0:02:37]} 12. e4 {[%clk 0:02:39]}  dxe4 {[%clk 0:02:35]} 13. Nxe4 {[%clk 0:02:40]}  Nxe4 {[%clk 0:02:24]} 14. Bxe4 {[%clk 0:02:41]}  Qc7 {[%clk 0:02:21]} 15. Bxh7+ {[%clk 0:02:32]}  Kf8 {[%clk 0:01:51]} 16. Qh5 {[%clk 0:01:56]}  Nxe5 {[%clk 0:01:47]} 17. dxe5 {[%clk 0:01:57]}  Bc5 {[%clk 0:01:27]} 18. Be4 {[%clk 0:01:48]}  Ba8 {[%clk 0:00:29]} 19. Rcd1 {[%clk 0:01:37]}  Rcd8 {[%clk 0:00:15]} 20. Qh8+ {[%clk 0:01:36]}  Ke7 {[%clk 0:00:15]} 21. Qxg7 {[%clk 0:01:37]}  Rxd1 {[%clk 0:00:15]} 22. Rxd1 {[%clk 0:01:38]}  Rf8 {[%clk 0:00:10]} 23. Qf6+ {[%clk 0:01:25]}  Ke8 {[%clk 0:00:10]} 24. Bc1 {[%clk 0:01:24]}  Qe7 {[%clk 0:00:10]} 25. Qg7 {[%clk 0:01:16]}  Qc7 {[%clk 0:00:09]} 26. Bg5 {[%clk 0:01:10]}  f6 {[%clk 0:00:06]} 27. Bg6+ {[%clk 0:01:10]}  Rf7 {[%clk 0:00:04]} 28. Qg8+ {[%clk 0:01:07]}  Ke7 {[%clk 0:00:05]} 29. Qxf7# {[%clk 0:01:05]} 1-0


[Site "https://www.chess.com"]

[Event "Titled Tuesday Blitz January 17 Late 2023"]
[White "Quinones Garcia, Santiago"]
[Black "Mendez Machado, Andre"]
[WhiteFideId "4408497"]
[BlackFideId "6603793"]
[WhiteElo "2248"]
[BlackElo "1974"]
[Result "0-1"]
[Round "11"]
[TimeControl "180+2"]
[Date "2023.01.17"]
[WhiteClock "0:00:58"]
[BlackClock "0:00:11"]

1. d4 {[%clk 0:02:55]}  Nf6 {[%clk 0:02:55]} 2. c4 {[%clk 0:02:55]}  e6 {[%clk 0:02:55]} 3. Nc3 {[%clk 0:02:55]}  Bb4 {[%clk 0:02:55]} 4. Qc2 {[%clk 0:02:54]}  b6 {[%clk 0:02:54]} 5. a3 {[%clk 0:02:55]}  Bxc3+ {[%clk 0:02:53]} 6. Qxc3 {[%clk 0:02:56]}  Bb7 {[%clk 0:02:53]} 7. f3 {[%clk 0:02:56]}  c5 {[%clk 0:02:51]} 8. dxc5 {[%clk 0:02:54]}  bxc5 {[%clk 0:02:51]} 9. e4 {[%clk 0:02:55]}  Nc6 {[%clk 0:02:50]} 10. Be3 {[%clk 0:02:55]}  d6 {[%clk 0:02:38]} 11. Rd1 {[%clk 0:02:55]}  Qe7 {[%clk 0:02:37]} 12. b4 {[%clk 0:02:49]}  cxb4 {[%clk 0:02:26]} 13. axb4 {[%clk 0:02:49]}  O-O {[%clk 0:02:27]} 14. Ne2 {[%clk 0:02:47]}  Ne5 {[%clk 0:02:16]} 15. Nd4 {[%clk 0:02:46]}  Rac8 {[%clk 0:01:51]} 16. Nb5 {[%clk 0:02:44]}  Nxe4 {[%clk 0:01:29]} 17. fxe4 {[%clk 0:02:42]}  Qh4+ {[%clk 0:01:30]} 18. Bf2 {[%clk 0:02:39]}  Qxe4+ {[%clk 0:01:30]} 19. Be2 {[%clk 0:02:40]}  Rxc4 {[%clk 0:01:18]} 20. Qg3 {[%clk 0:02:37]}  Rc2 {[%clk 0:01:01]} 21. Qe3 {[%clk 0:02:33]}  Qxb4+ {[%clk 0:00:57]} 22. Kf1 {[%clk 0:02:32]}  Rxe2 {[%clk 0:00:48]} 23. Qxe2 {[%clk 0:02:29]}  Ba6 {[%clk 0:00:49]} 24. Qd2 {[%clk 0:02:20]}  Bxb5+ {[%clk 0:00:47]} 25. Kg1 {[%clk 0:02:20]}  Qg4 {[%clk 0:00:41]} 26. Bg3 {[%clk 0:02:14]}  Nd3 {[%clk 0:00:36]} 27. Rb1 {[%clk 0:02:09]}  Qd4+ {[%clk 0:00:33]} 28. Bf2 {[%clk 0:02:09]}  Qc4 {[%clk 0:00:21]} 29. Bxa7 {[%clk 0:02:09]}  Ra8 {[%clk 0:00:20]} 30. Be3 {[%clk 0:02:04]}  Ra2 {[%clk 0:00:18]} 31. Qd1 {[%clk 0:01:42]}  Qe4 {[%clk 0:00:17]} 32. Qf3 {[%clk 0:01:40]}  Qc4 {[%clk 0:00:15]} 33. h4 {[%clk 0:01:37]}  h6 {[%clk 0:00:15]} 34. Kh2 {[%clk 0:01:35]}  Ne5 {[%clk 0:00:16]} 35. Qg3 {[%clk 0:01:34]}  Ng4+ {[%clk 0:00:16]} 36. Kh3 {[%clk 0:01:34]}  h5 {[%clk 0:00:13]} 37. Rhf1 {[%clk 0:01:34]}  Ra3 {[%clk 0:00:13]} 38. Rf3 {[%clk 0:01:34]}  Bc6 {[%clk 0:00:13]} 39. Rb8+ {[%clk 0:01:32]}  Kh7 {[%clk 0:00:13]} 40. Bf4 {[%clk 0:01:00]}  Bxf3 {[%clk 0:00:12]} 41. gxf3 {[%clk 0:01:01]}  Qf1+ {[%clk 0:00:10]} 42. Qg2 {[%clk 0:00:58]}  Rxf3+ {[%clk 0:00:11]} 43. Bg3 {[%clk 0:00:59]}  Qxg2+ {[%clk 0:00:10]} 44. Kxg2 {[%clk 0:00:59]}  Rd3 {[%clk 0:00:10]} 45. Rd8 {[%clk 0:00:58]}  d5 {[%clk 0:00:11]} 46. Rd7 {[%clk 0:00:58]}  Ne3+ {[%clk 0:00:11]} 47. Kf3 {[%clk 0:00:58]}  Nf5+ {[%clk 0:00:11]} 0-1


[Site "https://www.chess.com"]

[Event "Titled Tuesday Blitz January 17 Late 2023"]
[White "Papp, Petra"]
[Black "Curtis, John"]
[WhiteFideId "739049"]
[BlackFideId "3200256"]
[WhiteElo "2343"]
[BlackElo "2292"]
[Result "1-0"]
[Round "11"]
[TimeControl "180+2"]
[Date "2023.01.17"]
[WhiteClock "0:00:06"]
[BlackClock "0:00:09"]

1. e4 {[%clk 0:03:00]}  e5 {[%clk 0:02:50]} 2. f4 {[%clk 0:02:59]}  d5 {[%clk 0:02:48]} 3. exd5 {[%clk 0:02:54]}  e4 {[%clk 0:02:42]} 4. d3 {[%clk 0:02:48]}  Nf6 {[%clk 0:02:41]} 5. Nc3 {[%clk 0:02:45]}  Bb4 {[%clk 0:02:40]} 6. Bd2 {[%clk 0:02:45]}  e3 {[%clk 0:02:40]} 7. Bxe3 {[%clk 0:02:46]}  O-O {[%clk 0:02:39]} 8. Be2 {[%clk 0:02:41]}  Re8 {[%clk 0:02:28]} 9. Bd2 {[%clk 0:02:41]}  Bg4 {[%clk 0:02:21]} 10. h3 {[%clk 0:02:33]}  Bxc3 {[%clk 0:02:15]} 11. Bxc3 {[%clk 0:02:24]}  Bxe2 {[%clk 0:02:06]} 12. Nxe2 {[%clk 0:02:25]}  Nxd5 {[%clk 0:02:06]} 13. O-O {[%clk 0:02:21]}  Ne3 {[%clk 0:02:02]} 14. Qd2 {[%clk 0:02:19]}  Nxf1 {[%clk 0:02:01]} 15. Rxf1 {[%clk 0:02:19]}  c5 {[%clk 0:01:57]} 16. Ng3 {[%clk 0:02:01]}  Nc6 {[%clk 0:01:54]} 17. Ne4 {[%clk 0:02:01]}  b6 {[%clk 0:01:45]} 18. Qf2 {[%clk 0:02:00]}  f5 {[%clk 0:01:33]} 19. Nd2 {[%clk 0:01:48]}  Nd4 {[%clk 0:01:30]} 20. Nc4 {[%clk 0:01:39]}  Re2 {[%clk 0:01:11]} 21. Qg3 {[%clk 0:01:19]}  Qd5 {[%clk 0:01:09]} 22. Ne3 {[%clk 0:01:01]}  Qe6 {[%clk 0:00:56]} 23. Bxd4 {[%clk 0:00:54]}  cxd4 {[%clk 0:00:55]} 24. Nc4 {[%clk 0:00:42]}  Re8 {[%clk 0:00:51]} 25. Ne5 {[%clk 0:00:35]}  Rxc2 {[%clk 0:00:45]} 26. Rf2 {[%clk 0:00:34]}  Rc1+ {[%clk 0:00:44]} 27. Kh2 {[%clk 0:00:34]}  Re1 {[%clk 0:00:43]} 28. Qf3 {[%clk 0:00:26]}  Rxe5 {[%clk 0:00:43]} 29. fxe5 {[%clk 0:00:26]}  Qxe5+ {[%clk 0:00:43]} 30. Kh1 {[%clk 0:00:26]}  g6 {[%clk 0:00:40]} 31. g3 {[%clk 0:00:18]}  Re7 {[%clk 0:00:34]} 32. Kg2 {[%clk 0:00:18]}  Kg7 {[%clk 0:00:32]} 33. h4 {[%clk 0:00:18]}  h5 {[%clk 0:00:29]} 34. b3 {[%clk 0:00:17]}  Qe3 {[%clk 0:00:22]} 35. Qd1 {[%clk 0:00:13]}  Qe1 {[%clk 0:00:19]} 36. Qf3 {[%clk 0:00:12]}  Qe6 {[%clk 0:00:10]} 37. Qf4 {[%clk 0:00:10]}  Qe3 {[%clk 0:00:10]} 38. Qd6 {[%clk 0:00:08]}  Re6 {[%clk 0:00:08]} 39. Qd7+ {[%clk 0:00:08]}  Re7 {[%clk 0:00:09]} 40. Qd6 {[%clk 0:00:08]}  Qe5 {[%clk 0:00:09]} 41. Qd8 {[%clk 0:00:06]} 1-0


[Site "https://www.chess.com"]

[Event "Titled Tuesday Blitz January 17 Late 2023"]
[White "Smith, Garrett L"]
[Black "Stanisz, Patryk"]
[WhiteFideId "2024829"]
[BlackFideId "1123106"]
[WhiteElo "2047"]
[BlackElo "2161"]
[Result "0-1"]
[Round "11"]
[TimeControl "180+2"]
[Date "2023.01.17"]
[WhiteClock "0:00:03"]
[BlackClock "0:00:04"]

1. e4 {[%clk 0:03:00]}  c5 {[%clk 0:02:54]} 2. a3 {[%clk 0:02:57]}  Nc6 {[%clk 0:02:50]} 3. b4 {[%clk 0:02:57]}  cxb4 {[%clk 0:02:51]} 4. axb4 {[%clk 0:02:58]}  Nxb4 {[%clk 0:02:52]} 5. d4 {[%clk 0:02:57]}  e6 {[%clk 0:02:49]} 6. c3 {[%clk 0:02:55]}  Nc6 {[%clk 0:02:49]} 7. d5 {[%clk 0:02:56]}  Ne5 {[%clk 0:02:44]} 8. f4 {[%clk 0:02:50]}  Ng6 {[%clk 0:02:43]} 9. d6 {[%clk 0:02:33]}  Qb6 {[%clk 0:02:18]} 10. e5 {[%clk 0:02:26]}  f6 {[%clk 0:02:18]} 11. Nf3 {[%clk 0:02:24]}  Nh6 {[%clk 0:02:09]} 12. Na3 {[%clk 0:02:19]}  fxe5 {[%clk 0:02:03]} 13. Nb5 {[%clk 0:02:00]}  Ng4 {[%clk 0:01:42]} 14. Qe2 {[%clk 0:01:49]}  Bxd6 {[%clk 0:01:20]} 15. h3 {[%clk 0:01:14]}  Nh6 {[%clk 0:01:05]} 16. fxe5 {[%clk 0:01:10]}  Bc5 {[%clk 0:01:02]} 17. Ba3 {[%clk 0:01:02]}  O-O {[%clk 0:01:00]} 18. Rb1 {[%clk 0:00:57]}  Nf4 {[%clk 0:00:54]} 19. Qc4 {[%clk 0:00:55]}  Bf2+ {[%clk 0:00:51]} 20. Kd1 {[%clk 0:00:55]}  a6 {[%clk 0:00:46]} 21. Qc7 {[%clk 0:00:43]}  Qe3 {[%clk 0:00:35]} 22. Bc1 {[%clk 0:00:41]}  Qe4 {[%clk 0:00:24]} 23. Nd2 {[%clk 0:00:27]}  Qe1+ {[%clk 0:00:23]} 24. Kc2 {[%clk 0:00:28]}  axb5 {[%clk 0:00:18]} 25. Ba3 {[%clk 0:00:23]}  Qe3 {[%clk 0:00:12]} 26. Bxf8 {[%clk 0:00:21]}  Ra2+ {[%clk 0:00:11]} 27. Kb3 {[%clk 0:00:16]}  Qxd2 {[%clk 0:00:11]} 28. Ba3 {[%clk 0:00:12]}  Qd5+ {[%clk 0:00:06]} 29. c4 {[%clk 0:00:12]}  Rxa3+ {[%clk 0:00:03]} 30. Kxa3 {[%clk 0:00:11]}  Bc5+ {[%clk 0:00:03]} 31. Kb2 {[%clk 0:00:11]}  Qd4+ {[%clk 0:00:02]} 32. Kc2 {[%clk 0:00:10]}  b4 {[%clk 0:00:01]} 33. Qd8+ {[%clk 0:00:10]}  Kf7 {[%clk 0:00:02]} 34. Rd1 {[%clk 0:00:04]}  Qc3+ {[%clk 0:00:02]} 35. Kb1 {[%clk 0:00:04]}  Nf5 {[%clk 0:00:02]} 36. Rc1 {[%clk 0:00:03]}  Qb3+ {[%clk 0:00:02]} 37. Ka1 {[%clk 0:00:03]}  Qa3+ {[%clk 0:00:03]} 38. Kb1 {[%clk 0:00:03]}  Qb3+ {[%clk 0:00:03]} 39. Ka1 {[%clk 0:00:04]}  Bd4+ {[%clk 0:00:04]} 40. Rc3 {[%clk 0:00:03]}  Bxc3# {[%clk 0:00:04]} 0-1


[Site "https://www.chess.com"]